bitfinex-derivatives/quotes_BTCF0:USTF0_20210705
["timestamp","ask_amount","ask_price","bid_price","bid_amount"]
[1625462826191,1.33776176,34059.0,34055.0,1.26453136]
[1625462826290,1.33776176,34059.0,34055.0,0.059]
[1625462826390,1.33776176,34059.0,34054.0,2.14320782]
[1625462826541,1.33776176,34059.0,34055.0,1.20570562]
[1625462826942,1.33776176,34059.0,34055.0,1.26470562]
[1625462827042,1.28076176,34059.0,34055.0,1.26470562]
[1625462828447,1.28076176,34059.0,34055.0,0.059]
[1625462828548,1.28076176,34059.0,34054.0,0.9375]
[1625462829048,1.28076176,34059.0,34054.0,0.9965]
[1625462829400,1.28076176,34059.0,34056.0,4.0181]
[1625462829501,0.96230176,34059.0,34056.0,4.0181]
[1625462829601,0.48115088,34059.0,34058.0,0.24057544]
[1625462829699,0.48115088,34059.0,34058.0,0.29957544]
[1625462830002,0.48115088,34059.0,34058.0,0.35857544]
[1625462830254,0.48115088,34059.0,34058.0,0.29957544]
[1625462830453,0.48115088,34059.0,34058.0,0.35857544]
[1625462830554,0.48115088,34059.0,34058.0,1.50289984]
[1625462831057,0.48115088,34059.0,34058.0,1.44389984]
[1625462831154,0.48115088,34059.0,34058.0,1.50289984]
[1625462831355,0.53815088,34059.0,34058.0,0.24057544]
[1625462831455,0.48115088,34059.0,34058.0,0.24057544]
[1625462831757,0.48115088,34059.0,34058.0,0.35857544]
[1625462831857,0.48115088,34059.0,34058.0,0.29957544]
[1625462833063,0.48115088,34059.0,34058.0,0.35857544]
[1625462833715,0.53815088,34059.0,34058.0,0.29957544]
[1625462833815,0.53815088,34059.0,34058.0,0.24057544]
[1625462834921,0.79894088,34059.0,34054.0,0.9375]
[1625462835021,0.79894088,34059.0,34054.0,0.9965]
[1625462835118,0.79894088,34059.0,34054.0,0.9375]
[1625462835217,0.79894088,34059.0,34054.0,0.9965]
[1625462835368,0.79894088,34059.0,34054.0,1.0555]
[1625462835468,0.79894088,34059.0,34054.0,0.9965]
[1625462835669,0.79894088,34059.0,34055.0,0.51509214]
[1625462835769,0.79894088,34059.0,34055.0,0.57409214]
[1625462836571,0.79894088,34059.0,34055.0,0.059]
[1625462836673,0.79894088,34059.0,34056.0,3.8585]
[1625462836771,0.48115088,34059.0,34056.0,3.8585]
[1625462836871,0.48115088,34059.0,34056.0,3.9765]
[1625462837169,0.48115088,34059.0,34056.0,0.118]
[1625462837372,0.48315088,34059.0,34056.0,0.63296994]
[1625462837474,0.48315088,34059.0,34056.0,0.57396994]
[1625462837572,0.057,34058.0,34056.0,0.51496994]
[1625462837672,0.29757544,34058.0,34056.0,0.51496994]
[1625462837875,0.29757544,34058.0,34056.0,0.57396994]
[1625462837976,0.29757544,34058.0,34056.0,0.059]
[1625462838074,0.24057544,34058.0,34056.0,0.059]
[1625462838174,0.24057544,34058.0,34056.0,0.118]
[1625462838275,0.24057544,34058.0,34056.0,0.059]
[1625462838376,0.24057544,34058.0,34057.0,0.00431214]
[1625462838930,0.24057544,34058.0,34056.0,0.00431223]
[1625462839130,0.24057544,34058.0,34056.0,0.06331223]
[1625462839233,0.24057544,34058.0,34057.0,0.00431216]
[1625462839696,0.24057544,34058.0,34055.0,0.0043147]
[1625462839882,0.29757544,34058.0,34055.0,0.0043147]
[1625462839996,0.29757544,34058.0,34054.0,0.9375]
[1625462840082,0.35657544,34058.0,34054.0,0.9375]
[1625462840532,0.29757544,34058.0,34054.0,0.9375]
[1625462840632,0.24057544,34058.0,34054.0,0.9375]
[1625462840800,0.24057544,34058.0,34055.0,0.00431486]
[1625462841082,0.057,34057.0,34055.0,0.00431486]
[1625462841182,0.44301,34057.0,34055.0,0.00431486]
[1625462841283,0.44301,34057.0,34054.0,0.9375]
[1625462841682,0.24057544,34055.0,34054.0,0.9375]
[1625462841785,0.35657544,34055.0,34054.0,0.9375]
[1625462841882,0.29757544,34055.0,34054.0,0.9375]
[1625462841985,0.24057544,34055.0,34054.0,4.5801]
[1625462842183,0.29757544,34055.0,34054.0,4.5801]
[1625462842487,0.29757544,34055.0,34054.0,0.9375]
[1625462842586,0.52752544,34055.0,34054.0,0.9375]
[1625462845989,0.52752544,34055.0,34054.0,0.94181037]
[1625462846091,0.29757544,34055.0,34054.0,0.94181037]
[1625462846190,0.24057544,34058.0,34054.0,1.00081037]
[1625462846291,0.24057544,34058.0,34054.0,1.26822037]
[1625462846392,0.48715088,34059.0,34054.0,1.26822037]
[1625462846493,0.006,34059.0,34055.0,0.0043096]
[1625462846595,0.01,34063.0,34055.0,0.0633096]
[1625462846695,0.48820977,34067.0,34055.0,0.1223096]
[1625462846797,0.48968423,34076.0,34055.0,0.0633096]
[1625462847096,0.48968423,34076.0,34056.0,0.0043086]
[1625462847199,0.48968423,34076.0,34056.0,0.07364545]
[1625462847298,0.48968423,34076.0,34056.0,0.08233616]
[1625462847653,0.9735,34080.0,34064.0,0.51429825]
[1625462847754,0.24057544,34078.0,34075.0,0.48115088]
[1625462847853,0.24057544,34078.0,34075.0,0.90123088]
[1625462847951,0.24057544,34078.0,34075.0,1.00123088]
[1625462848249,0.24057544,34078.0,34075.0,0.94223088]
[1625462848348,0.24057544,34078.0,34075.0,0.90123088]
[1625462848605,0.24057544,34078.0,34075.0,0.84223088]
[1625462848700,0.57770544,34078.0,34075.0,0.84223088]
[1625462848901,0.69570544,34078.0,34075.0,0.48115088]
[1625462848999,0.63670544,34078.0,34075.0,0.48115088]
[1625462849300,0.057,34077.0,34075.0,0.48115088]
[1625462849500,0.116,34077.0,34075.0,0.48115088]
[1625462849601,0.057,34077.0,34075.0,0.48115088]
[1625462849702,0.24057544,34078.0,34075.0,0.54015088]
[1625462849800,0.24057544,34078.0,34075.0,0.59915088]
[1625462850102,0.24057544,34078.0,34077.0,0.1]
[1625462850704,0.24057544,34078.0,34077.0,0.159]
[1625462851002,0.29757544,34078.0,34077.0,0.159]
[1625462851103,0.35657544,34078.0,34077.0,0.159]
[1625462851402,0.29757544,34078.0,34077.0,0.159]
[1625462851904,0.35657544,34078.0,34077.0,0.159]
[1625462852105,0.29757544,34078.0,34077.0,0.159]
[1625462852206,0.24057544,34078.0,34077.0,0.159]
[1625462852455,0.24057544,34078.0,34077.0,0.218]
[1625462852555,0.24057544,34078.0,34077.0,0.159]
[1625462852656,0.24057544,34078.0,34077.0,0.1]
[1625462852856,0.29957544,34078.0,34077.0,0.1]
[1625462853357,0.29757544,34078.0,34077.0,0.1]
[1625462853706,0.24057544,34078.0,34077.0,0.1]
[1625462854356,0.29757544,34078.0,34077.0,0.1]
[1625462854458,0.35657544,34078.0,34077.0,0.1]
[1625462854658,0.41557544,34078.0,34077.0,0.1]
[1625462855708,0.35657544,34078.0,34077.0,0.1]
[1625462855808,0.63270544,34078.0,34077.0,0.1]
[1625462855957,0.57370544,34078.0,34077.0,0.1]
[1625462856510,0.63270544,34078.0,34077.0,0.1]
[1625462856608,0.57370544,34078.0,34077.0,0.1]
[1625462859581,0.29757544,34078.0,34077.0,0.1]
[1625462861674,0.29757544,34078.0,34077.0,0.159]
[1625462861774,0.24057544,34078.0,34077.0,0.159]
[1625462865078,0.24057544,34078.0,34077.0,0.1]
[1625462866783,0.24057544,34078.0,34077.0,0.159]
[1625462870543,0.49512779,34079.0,34077.0,0.159]
[1625462870896,0.49757971,34081.0,34077.0,0.059]
[1625462871596,0.49757971,34081.0,34080.0,0.1]
[1625462871695,0.002,34081.0,34080.0,0.40393]
[1625462871845,0.002,34081.0,34080.0,0.88508088]
[1625462872847,0.002,34081.0,34080.0,0.97278088]
[1625462872996,0.002,34081.0,34080.0,0.88508088]
[1625462873748,0.99151455,34084.0,34080.0,0.88508088]
[1625462873849,0.99151455,34084.0,34081.0,0.24057544]
[1625462874050,0.66105958,34084.0,34081.0,0.35857544]
[1625462874150,0.61905958,34084.0,34081.0,0.35857544]
[1625462874255,0.61905958,34084.0,34082.0,0.0043061]
[1625462874350,0.61905958,34084.0,34082.0,0.0633061]
[1625462874450,0.61905958,34084.0,34082.0,0.1223061]
[1625462874550,0.006,34085.0,34082.0,0.1223061]
[1625462874750,0.006,34085.0,34083.0,0.00430594]
[1625462874953,0.006,34085.0,34084.0,0.1]
[1625462875054,0.006,34085.0,34084.0,0.218]
[1625462875306,0.006,34085.0,34084.0,0.22230584]
[1625462875856,0.006,34085.0,34084.0,0.46288128]
[1625462876305,0.24057544,34088.0,34084.0,0.40388128]
[1625462876407,0.24057544,34088.0,34084.0,0.46288128]
[1625462876707,0.24057544,34088.0,34085.0,0.00430589]
[1625462876805,0.24057544,34088.0,34085.0,0.06330589]
[1625462876905,0.24057544,34088.0,34085.0,0.00430589]
[1625462877709,0.24057544,34088.0,34087.0,0.1]
[1625462877913,0.24057544,34088.0,34087.0,0.39957544]
[1625462878010,0.24057544,34088.0,34087.0,0.40388138]
[1625462878415,0.35657544,34088.0,34087.0,0.34488138]
[1625462878515,0.35657544,34088.0,34087.0,0.34057544]
[1625462878615,0.41557544,34088.0,34087.0,0.34057544]
[1625462878715,1.41591603,34088.0,34087.0,0.34057544]
[1625462879116,3.91436994,34088.0,34087.0,0.34057544]
[1625462880115,3.92915419,34088.0,34087.0,0.34057544]
[1625462880216,3.87015419,34088.0,34087.0,0.34057544]
[1625462880317,3.92915419,34088.0,34087.0,0.34057544]
[1625462880417,3.91436994,34088.0,34087.0,0.34057544]
[1625462880666,3.85536994,34088.0,34087.0,0.34057544]
[1625462880866,3.79636994,34088.0,34087.0,0.34057544]
[1625462881418,2.46387229,34088.0,34087.0,0.34057544]
[1625462881918,1.29791603,34088.0,34087.0,0.34057544]
[1625462882220,2.46673435,34088.0,34087.0,0.34057544]
[1625462882869,2.46673435,34088.0,34087.0,0.39957544]
[1625462882969,2.46673435,34088.0,34087.0,0.34057544]
[1625462883370,2.46673435,34088.0,34087.0,0.34488731]
[1625462883471,1.29791603,34088.0,34087.0,0.34488731]
[1625462883973,1.29791603,34088.0,34087.0,0.40388731]
[1625462884077,1.29791603,34088.0,34087.0,0.34488731]
[1625462885173,1.29791603,34088.0,34087.0,0.40388731]
[1625462885373,1.29791603,34088.0,34087.0,0.34488731]
[1625462885476,1.29791603,34088.0,34087.0,0.40388731]
[1625462885675,1.24091603,34088.0,34087.0,0.40388731]
[1625462886078,0.24057544,34088.0,34087.0,0.40388731]
[1625462887531,0.24057544,34088.0,34087.0,0.46288731]
[1625462888232,0.002,34089.0,34087.0,0.46288731]
[1625462888334,0.82424576,34093.0,34087.0,0.46288731]
[1625462888532,0.9429,34098.0,34087.0,0.46288731]
[1625462888633,1.28011591,34096.0,34087.0,0.46288731]
[1625462888735,1.28011591,34096.0,34088.0,0.00431036]
[1625462888833,1.28011591,34096.0,34088.0,0.12231036]
[1625462888934,0.2929,34136.0,34088.0,0.12231036]
[1625462889035,0.2929,34136.0,34088.0,0.62231036]
[1625462889136,4.62075481,34134.0,34088.0,0.62231036]
[1625462889235,0.057,34111.0,34088.0,0.62231036]
[1625462889335,4.62075481,34134.0,34089.0,0.00430974]
[1625462889336,0.002,34094.0,34089.0,0.00430974]
[1625462889436,0.9206,34116.0,34094.0,0.059]
[1625462889535,0.9206,34116.0,34094.0,0.41911]
[1625462889636,0.9206,34116.0,34095.0,0.5]
[1625462889735,0.9206,34116.0,34095.0,0.618]
[1625462889736,1.50687245,34109.0,34095.0,0.618]
[1625462889836,1.50687245,34109.0,34104.0,4.5151]
[1625462889936,1.50687245,34109.0,34108.0,0.96230176]
[1625462890038,1.00657245,34109.0,34108.0,1.02130176]
[1625462890137,0.22587245,34109.0,34108.0,1.08030176]
[1625462890241,0.24057544,34120.0,34108.0,1.08030176]
[1625462890689,0.057,34119.0,34108.0,1.08030176]
[1625462890792,0.057,34119.0,34108.0,1.02130176]
[1625462890891,0.057,34119.0,34108.0,1.08030176]
[1625462891291,0.057,34119.0,34118.0,0.1]
[1625462891891,0.057,34119.0,34118.0,0.58115088]
[1625462893195,0.24057544,34120.0,34118.0,0.64015088]
[1625462893296,0.057,34119.0,34118.0,0.64015088]
[1625462894347,0.24057544,34120.0,34118.0,0.64015088]
[1625462894548,0.057,34119.0,34118.0,0.64015088]
[1625462895348,0.057,34119.0,34118.0,0.64215088]
[1625462895901,0.24057544,34120.0,34118.0,0.64215088]
[1625462895999,0.057,34119.0,34118.0,0.64215088]
[1625462896198,0.24057544,34120.0,34118.0,0.64215088]
[1625462896299,0.24057544,34120.0,34118.0,0.54215088]
[1625462896600,0.24057544,34120.0,34118.0,0.60115088]
[1625462896800,0.24057544,34120.0,34118.0,0.54215088]
[1625462896900,0.24057544,34120.0,34119.0,0.1]
[1625462897001,0.29757544,34120.0,34119.0,0.1]
[1625462897501,0.24057544,34120.0,34119.0,0.1]
[1625462902009,0.29757544,34120.0,34119.0,0.1]
[1625462902511,0.35657544,34120.0,34119.0,0.1]
[1625462902764,0.29757544,34120.0,34119.0,0.1]
[1625462904967,0.24057544,34120.0,34119.0,0.1]
[1625462905620,0.47568544,34120.0,34119.0,0.1]
[1625462906118,0.47568544,34120.0,34119.0,0.1876]
[1625462906619,0.53268544,34120.0,34119.0,0.1876]
[1625462907270,0.53268544,34120.0,34119.0,0.1896]
[1625462911683,0.53268544,34120.0,34119.0,0.3076]
[1625462911782,0.24057544,34120.0,34119.0,0.5924]
[1625462911881,0.24057544,34120.0,34119.0,0.5048]
[1625462912183,0.24057544,34120.0,34119.0,0.4458]
[1625462912935,0.29757544,34120.0,34119.0,0.161]
[1625462914542,0.24057544,34120.0,34119.0,0.22]
[1625462914789,0.24057544,34120.0,34119.0,0.161]
[1625462914891,0.29757544,34120.0,34119.0,0.22]
[1625462915190,0.24057544,34120.0,34119.0,0.22]
[1625462915289,0.24057544,34120.0,34119.0,0.161]
[1625462915890,0.29757544,34120.0,34119.0,0.161]
[1625462917443,0.31231098,34120.0,34119.0,0.161]
[1625462917845,0.31231098,34120.0,34119.0,0.102]
[1625462918095,0.48042186,34120.0,34119.0,0.102]
[1625462918295,0.53942186,34120.0,34119.0,0.102]
[1625462918495,0.37131098,34120.0,34119.0,0.102]
[1625462920100,0.48045976,34120.0,34119.0,0.102]
[1625462922104,0.31231098,34120.0,34119.0,0.102]
[1625462922453,0.31231098,34120.0,34119.0,0.1653162]
[1625462923107,0.07173554,34120.0,34119.0,0.1653162]
[1625462923406,0.01473554,34120.0,34119.0,0.1653162]
[1625462923506,0.01473554,34120.0,34119.0,0.2243162]
[1625462923857,0.01473373,34121.0,34119.0,0.2243162]
[1625462924157,0.01473373,34121.0,34120.0,0.24489136]
[1625462924258,0.01473373,34121.0,34120.0,0.30389136]
[1625462925009,0.01473373,34121.0,34120.0,0.40389136]
[1625462926509,0.01473373,34121.0,34120.0,0.34489136]
[1625462926611,0.01473373,34121.0,34120.0,0.40389136]
[1625462929266,0.01473373,34121.0,34120.0,0.40589136]
[1625462930069,0.34231373,34121.0,34120.0,0.40589136]
[1625462930420,0.34231373,34121.0,34120.0,0.34689136]
[1625462930873,0.51141503,34121.0,34120.0,0.34689136]
[1625462931624,0.34231373,34121.0,34120.0,0.34689136]
[1625462932628,0.39931373,34121.0,34120.0,0.34689136]
[1625462932827,0.45831373,34121.0,34120.0,0.34689136]
[1625462933127,1.47282897,34121.0,34120.0,0.34689136]
[1625462933226,1.47282897,34121.0,34120.0,0.34257544]
[1625462934080,2.65701465,34121.0,34120.0,0.102]
[1625462934176,2.71601465,34121.0,34120.0,0.102]
[1625462934276,3.19716553,34121.0,34120.0,0.102]
[1625462934478,3.19716553,34121.0,34116.0,0.006]
[1625462934677,5.22514687,34121.0,34116.0,0.006]
[1625462934777,0.04947582,34120.0,34116.0,0.006]
[1625462934980,0.16747582,34120.0,34116.0,0.006]
[1625462935078,0.116,34119.0,34116.0,0.006]
[1625462935179,0.175,34119.0,34116.0,0.006]
[1625462935377,0.22247995,34119.0,34117.0,0.004]
[1625462935577,0.22247995,34119.0,34115.0,0.004]
[1625462935779,5.78791096,34118.0,34115.0,0.004]
[1625462935880,0.114,34117.0,34115.0,0.004]
[1625462936080,2.86944162,34116.0,34115.0,0.004]
[1625462936179,5.85271448,34116.0,34115.0,0.004]
[1625462936281,6.39286536,34116.0,34115.0,0.004]
[1625462936482,6.40760451,34116.0,34115.0,0.004]
[1625462937181,4.88858763,34116.0,34115.0,0.004]
[1625462937532,4.82958763,34116.0,34115.0,0.004]
[1625462937634,6.34942533,34116.0,34115.0,0.004]
[1625462938139,4.77058763,34116.0,34115.0,0.004]
[1625462938341,4.76458763,34116.0,34114.0,0.006]
[1625462938588,1.6904154,34115.0,34114.0,0.006]
[1625462938688,1.7454154,34115.0,34114.0,0.006]
[1625462938838,1.76015303,34115.0,34114.0,0.006]
[1625462939089,1.81915303,34115.0,34114.0,0.006]
[1625462940342,3.17329341,34115.0,34114.0,0.006]
[1625462941547,3.15855578,34115.0,34114.0,0.006]
[1625462944055,1.8044154,34115.0,34114.0,0.006]
[1625462944304,1.8044154,34115.0,34113.0,0.006]
[1625462944504,1.8634154,34115.0,34113.0,0.006]
[1625462944605,3.22138304,34115.0,34113.0,0.006]
[1625462944957,3.05524595,34114.0,34113.0,0.006]
[1625462945056,3.11024595,34114.0,34113.0,0.006]
[1625462945156,3.22824595,34114.0,34113.0,0.006]
[1625462945457,3.24298475,34114.0,34113.0,0.006]
[1625462945557,4.77036188,34114.0,34113.0,0.006]
[1625462946358,5.01093732,34114.0,34113.0,0.006]
[1625462947261,5.01093732,34114.0,34111.0,0.002]
[1625462947561,4.99619852,34114.0,34111.0,0.002]
[1625462947918,3.06292264,34112.0,34111.0,0.002]
[1625462948012,3.54361264,34112.0,34111.0,0.002]
[1625462949066,5.07662836,34112.0,34111.0,0.002]
[1625462950468,0.48069,34112.0,34111.0,0.002]
[1625462955731,0.173,34112.0,34111.0,0.002]
[1625462956227,0.114,34112.0,34111.0,0.002]
[1625462956328,0.24057544,34114.0,34111.0,0.36898]
[1625462956428,0.29957544,34114.0,34113.0,0.24057544]
[1625462956526,0.24057544,34114.0,34113.0,0.24057544]
[1625462956628,0.24057544,34114.0,34113.0,0.29957544]
[1625462956727,0.24057544,34114.0,34113.0,0.30388933]
[1625462956929,1.94776207,34114.0,34113.0,0.30388933]
[1625462957330,1.94776207,34114.0,34113.0,0.99598479]
[1625462958181,1.94776207,34114.0,34113.0,1.05498479]
[1625462958282,1.94776207,34114.0,34113.0,2.09317268]
[1625462959130,1.94776207,34114.0,34113.0,2.03417268]
[1625462960987,1.94776207,34114.0,34113.0,3.24538985]
[1625462961588,1.94776207,34114.0,34113.0,3.30438985]
[1625462962687,1.94776207,34114.0,34113.0,3.24538985]
[1625462962791,1.94776207,34114.0,34113.0,3.18638985]
[1625462963343,1.94776207,34114.0,34113.0,3.24538985]
[1625462963794,0.92348423,34114.0,34113.0,3.24538985]
[1625462963896,0.92348423,34114.0,34113.0,3.18638985]
[1625462963996,0.92348423,34114.0,34113.0,3.24538985]
[1625462964499,1.43661012,34114.0,34113.0,3.76441582]
[1625462964748,1.41161012,34114.0,34113.0,3.76441582]
[1625462964847,1.38921012,34114.0,34113.0,3.76441582]
[1625462964997,0.70630133,34114.0,34113.0,5.14839138]
[1625462965097,0.66810133,34114.0,34113.0,5.14839138]
[1625462966750,0.66810133,34114.0,34113.0,3.76441582]
[1625462968557,1.35027198,34114.0,34113.0,3.76441582]
[1625462968958,1.35027198,34114.0,34113.0,3.70541582]
[1625462969058,0.66810133,34114.0,34113.0,3.70541582]
[1625462969207,0.66810133,34114.0,34113.0,3.76441582]
[1625462969360,0.66810133,34114.0,34113.0,3.70541582]
[1625462969459,0.66810133,34114.0,34113.0,3.76441582]
[1625462969560,0.66810133,34114.0,34113.0,3.70541582]
[1625462969661,1.35021379,34114.0,34113.0,3.70541582]
[1625462969859,1.40721379,34114.0,34113.0,3.46484038]
[1625462969960,1.67805379,34114.0,34113.0,3.46484038]
[1625462970461,3.89316519,34114.0,34113.0,1.21543532]
[1625462970562,4.13374063,34114.0,34113.0,1.21543532]
[1625462970910,4.13374063,34114.0,34113.0,1.21112143]
[1625462971013,4.13374063,34114.0,34113.0,0.51902597]
[1625462971112,4.19274063,34114.0,34113.0,0.51902597]
[1625462971517,4.19274063,34114.0,34112.0,0.17299022]
[1625462971518,5.55526688,34114.0,34112.0,0.17299022]
[1625462972165,4.76924775,34113.0,34112.0,0.51902261]
[1625462972264,4.88524775,34113.0,34112.0,0.51902261]
[1625462973467,4.88524775,34113.0,34111.0,0.69196089]
[1625462973468,4.88524775,34113.0,34111.0,0.51901849]
[1625462974119,1.53231866,34112.0,34111.0,0.51901849]
[1625462974220,3.52107693,34112.0,34111.0,0.51901849]
[1625462974973,4.88256017,34112.0,34110.0,0.76157611]
[1625462975069,4.94156017,34112.0,34110.0,0.76157611]
[1625462975520,4.76421148,34111.0,34110.0,0.24257544]
[1625462975620,4.82121148,34111.0,34110.0,0.24257544]
[1625462975721,4.88021148,34111.0,34110.0,0.24257544]
[1625462977276,4.88021148,34111.0,34110.0,0.24057544]
[1625462984946,4.88021148,34111.0,34110.0,0.34057544]
[1625462986502,5.09093148,34111.0,34110.0,0.34057544]
[1625462988857,0.32672,34111.0,34110.0,0.34057544]
[1625462988958,0.116,34111.0,34110.0,0.34057544]
[1625462989559,4.88517795,34111.0,34110.0,0.34057544]
[1625462989659,5.21801795,34111.0,34110.0,0.34057544]
[1625462991765,5.21801795,34111.0,34110.0,0.34489168]
[1625462992415,5.21801795,34111.0,34110.0,0.86408331]
[1625462993018,5.21801795,34111.0,34110.0,0.34489168]
[1625462993116,5.21801795,34111.0,34110.0,0.34057544]
[1625462993616,5.21801795,34111.0,34110.0,0.1]
[1625462994468,5.21801795,34111.0,34110.0,0.1043165]
[1625462994770,5.45859339,34111.0,34110.0,0.1]
[1625462994869,5.45859339,34111.0,34106.0,1.03852646]
[1625462995220,5.45859339,34111.0,34107.0,0.52358443]
[1625462995524,5.45859339,34111.0,34108.0,0.00431673]
[1625462995872,6.47617087,34111.0,34108.0,0.00431673]
[1625462996071,6.47617087,34111.0,34106.0,0.002]
[1625462996371,0.01473976,34110.0,34106.0,0.002]
[1625462996472,3.57671399,34109.0,34106.0,0.002]
[1625462996575,0.057,34108.0,34107.0,0.00431695]
[1625462996672,0.116,34108.0,34107.0,0.00431695]
[1625462996774,0.35657544,34108.0,34107.0,0.00431695]
[1625462996873,4.0057075,34108.0,34107.0,0.00431695]
[1625462996972,4.0057075,34108.0,34100.0,0.008]
[1625462997374,0.01475266,34107.0,34102.0,0.00431219]
[1625462997475,1.19162154,34103.0,34102.0,0.00431219]
[1625462997574,1.49192154,34103.0,34102.0,0.00431219]
[1625462997673,1.60992154,34103.0,34102.0,0.00431219]
[1625462997923,1.60992154,34103.0,34101.0,0.00431235]
[1625462998027,2.97156687,34103.0,34101.0,0.00431235]
[1625462998226,2.96956687,34103.0,34101.0,0.01031235]
[1625462998425,2.55185505,34102.0,34101.0,0.01031235]
[1625462998525,2.66785505,34102.0,34101.0,0.01031235]
[1625462998626,2.72685505,34102.0,34101.0,0.01031235]
[1625462998777,3.44858137,34102.0,34101.0,0.01031235]
[1625462998878,2.08760335,34102.0,34101.0,0.01031235]
[1625463000230,2.03060335,34102.0,34101.0,0.01031235]
[1625463000329,1.97160335,34102.0,34101.0,0.01031235]
[1625463000633,0.78072632,34102.0,34101.0,0.01031235]
[1625463000831,0.83972632,34102.0,34101.0,0.01031235]
[1625463001334,0.89472632,34102.0,34101.0,0.00431235]
[1625463001737,0.89472632,34102.0,34099.0,0.00431246]
[1625463001835,0.90947954,34102.0,34099.0,0.00431246]
[1625463002035,0.89472632,34102.0,34099.0,0.00431246]
[1625463002285,0.01475363,34101.0,34099.0,0.00431246]
[1625463002384,0.13275363,34101.0,34099.0,0.00431246]
[1625463002487,0.116,34100.0,34099.0,0.00431246]
[1625463002587,0.175,34100.0,34099.0,0.00431246]
[1625463002787,0.41557544,34100.0,34099.0,0.00431246]
[1625463002886,0.43032931,34100.0,34099.0,0.00431246]
[1625463003088,0.41557544,34100.0,34099.0,0.00431246]
[1625463003588,0.41557544,34100.0,34095.0,0.0872]
[1625463003688,0.43032924,34100.0,34095.0,0.1172]
[1625463003787,0.43032924,34100.0,34095.0,0.0092]
[1625463003888,0.91557544,34100.0,34093.0,1.38437828]
[1625463003991,0.91557544,34100.0,34092.0,1.38399417]
[1625463004194,0.01476706,34099.0,34094.0,0.00430923]
[1625463004291,0.07376706,34099.0,34094.0,0.00430923]
[1625463004390,0.13276706,34099.0,34093.0,0.00430948]
[1625463004490,4.89484178,34094.0,34093.0,0.00430948]
[1625463004590,5.23009178,34094.0,34093.0,0.00430948]
[1625463004691,5.78909178,34094.0,34092.0,0.88820365]
[1625463004803,0.72172632,34093.0,34092.0,0.46570365]
[1625463004892,0.83772632,34093.0,34084.0,1.73000327]
[1625463004993,0.91152093,34093.0,34084.0,1.73000327]
[1625463005092,0.91152093,34093.0,34084.0,1.55702589]
[1625463005192,0.01479505,34092.0,34090.0,0.00430087]
[1625463005293,0.13279505,34092.0,34090.0,0.00430087]
[1625463005392,0.057,34091.0,34090.0,0.00430087]
[1625463005492,0.175,34091.0,34088.0,0.08645625]
[1625463005591,0.675,34091.0,34088.0,0.08645625]
[1625463005745,0.01479556,34090.0,34089.0,0.00430111]
[1625463005846,0.01479556,34090.0,34088.0,0.00435736]
[1625463005942,0.13279556,34090.0,34088.0,0.00435736]
[1625463006042,0.057,34089.0,34077.0,1.55625392]
[1625463006141,0.175,34089.0,34077.0,1.55625392]
[1625463006392,0.175,34089.0,34076.0,1.79524006]
[1625463006492,0.175,34089.0,34078.0,0.00429648]
[1625463006693,0.175,34089.0,34077.0,0.00429648]
[1625463006793,0.72172632,34078.0,34077.0,0.00429648]
[1625463006895,1.27556176,34078.0,34077.0,0.00429648]
[1625463006994,1.33456176,34078.0,34077.0,0.00429648]
[1625463007295,3.7874,34077.0,34076.0,1.2700611]
[1625463007398,4.4034,34077.0,34072.0,1.55468742]
[1625463007495,3.9034,34077.0,34072.0,1.55468742]
[1625463007798,3.9034,34077.0,34065.0,0.24057544]
[1625463008002,0.116,34077.0,34065.0,0.24057544]
[1625463008101,0.116,34077.0,34066.0,0.00429288]
[1625463008305,0.175,34077.0,34066.0,0.00429288]
[1625463008606,0.175,34077.0,34063.0,0.00429305]
[1625463008903,0.72172632,34064.0,34061.0,0.06329308]
[1625463009004,1.00790632,34064.0,34061.0,0.06329308]
[1625463009105,1.00790632,34064.0,34061.0,0.059]
[1625463009204,1.00790632,34064.0,34057.0,2.65913751]
[1625463009306,1.00790632,34064.0,34059.0,0.01040589]
[1625463009407,1.00790632,34064.0,34062.0,0.00429308]
[1625463009508,1.00790632,34064.0,34062.0,0.12229308]
[1625463009708,1.00790632,34064.0,34062.0,0.118]
[1625463010007,1.00790632,34064.0,34062.0,0.059]
[1625463010360,1.00790632,34064.0,34058.0,1.96529748]
[1625463010458,1.00790632,34064.0,34062.0,0.059]
[1625463011911,1.00790632,34064.0,34062.0,0.118]
[1625463012010,1.00790632,34064.0,34062.0,0.059]
[1625463014819,1.00790632,34064.0,34062.0,0.118]
[1625463014919,1.00790632,34064.0,34062.0,0.059]
[1625463015422,0.72172632,34064.0,34062.0,0.118]
[1625463015520,0.72172632,34064.0,34062.0,0.42858]
[1625463016322,0.72372632,34064.0,34062.0,0.42858]
[1625463017072,0.72372632,34064.0,34062.0,0.66915544]
[1625463018483,0.72372632,34064.0,34063.0,1.20195159]
[1625463018577,0.72372632,34064.0,34063.0,1.31995159]
[1625463019130,0.48315088,34064.0,34063.0,1.31995159]
[1625463020031,0.47915088,34064.0,34063.0,2.69293473]
[1625463021133,0.006,34068.0,34063.0,2.93351017]
[1625463021684,0.006,34068.0,34067.0,2.57376124]
[1625463021785,0.008,34070.0,34067.0,2.69176124]
[1625463022335,0.006,34069.0,34067.0,2.68576124]
[1625463022536,0.006,34069.0,34067.0,0.118]
[1625463022887,0.006,34069.0,34068.0,5.86099735]
[1625463022990,0.006,34069.0,34068.0,5.97899735]
[1625463023087,0.006,34069.0,34068.0,6.16699735]
[1625463023189,0.006,34069.0,34068.0,6.64814823]
[1625463023290,0.006,34069.0,34068.0,6.56014823]
[1625463023739,0.006,34069.0,34068.0,6.56443816]
[1625463024091,0.006,34069.0,34068.0,6.56014823]
[1625463024291,0.006,34069.0,34068.0,6.56443816]
[1625463025342,0.006,34070.0,34068.0,6.56443816]
[1625463025743,0.006,34070.0,34069.0,1.20154185]
[1625463025843,0.006,34070.0,34069.0,1.32383185]
[1625463026346,0.006,34070.0,34069.0,1.26483185]
[1625463026445,0.006,34070.0,34069.0,1.32383185]
[1625463026545,0.006,34070.0,34069.0,1.42383185]
[1625463027148,0.006,34070.0,34069.0,1.66440729]
[1625463027247,0.006,34070.0,34069.0,1.90636729]
[1625463027347,0.006,34070.0,34069.0,2.93629544]
[1625463027597,0.29757544,34086.0,34069.0,2.93629544]
[1625463027698,0.24057544,34086.0,34069.0,2.93629544]